fUST/lending_fUST_20240907
["ID","MTS","AMOUNT","RATE_DAILY","PERIOD"]
[337407672,1725648404092,-321.0,0.00041918,120]
[337407673,1725648404135,-321.0,0.00041918,120]
[337407674,1725648404179,-321.0,0.00041918,120]
[337407675,1725648404222,-321.0,0.00041918,120]
[337407676,1725648404280,-321.0,0.00041918,120]
[337407677,1725648404329,-321.0,0.00041918,120]
[337407678,1725648404377,-321.0,0.00041918,120]
[337407679,1725648404422,-321.0,0.00041918,120]
[337407680,1725648404468,-321.0,0.00041918,120]
[337407681,1725648404513,-153.0,0.00041918,120]
[337407682,1725648404560,-321.0,0.00041918,120]
[337407683,1725648404606,-321.0,0.00041918,120]
[337407684,1725648404654,-321.0,0.00041918,120]
[337407685,1725648404703,-321.0,0.00041918,120]
[337407686,1725648404930,-321.0,0.00041918,120]
[337407687,1725648404975,-321.0,0.00041918,120]
[337407688,1725648405020,-321.0,0.00041918,120]
[337407689,1725648405065,-321.0,0.00041918,120]
[337407690,1725648405109,-321.0,0.00041918,120]
[337407691,1725648405153,-321.0,0.00041918,120]
[337407692,1725648405204,-321.0,0.00041918,120]
[337407693,1725648405250,-321.0,0.00041918,120]
[337407694,1725648405296,-321.0,0.00041918,120]
[337407695,1725648405344,-321.0,0.00041918,120]
[337407696,1725648405392,-153.0,0.00041918,120]
[337407697,1725648405439,-321.0,0.00041918,120]
[337407698,1725648405490,-321.0,0.00041918,120]
[337407699,1725648405536,-321.0,0.00041918,120]
[337407700,1725648405587,-321.0,0.00041918,120]
[337407701,1725648405632,-321.0,0.00041918,120]
[337407702,1725648405678,-321.0,0.00041918,120]
[337407703,1725648405729,-321.0,0.00041918,120]
[337407704,1725648405778,-321.0,0.00041918,120]
[337407705,1725648405831,-321.0,0.00041918,120]
[337407706,1725648405876,-321.0,0.00041918,120]
[337407707,1725648405923,-321.0,0.00041918,120]
[337407708,1725648405968,-321.0,0.00041918,120]
[337407709,1725648406012,-321.0,0.00041918,120]
[337407710,1725648406058,-321.0,0.00041918,120]
[337407711,1725648406102,-153.0,0.00041918,120]
[337407712,1725648406146,-321.0,0.00041918,120]
[337407713,1725648406198,-321.0,0.00041918,120]
[337407714,1725648406245,-321.0,0.00041918,120]
[337407715,1725648406296,-321.0,0.00041918,120]
[337407716,1725648406346,-321.0,0.00041918,120]
[337407717,1725648406394,-321.0,0.00041918,120]
[337407718,1725648406445,-321.0,0.00041918,120]
[337407719,1725648406496,-321.0,0.00041918,120]
[337407720,1725648406554,-321.0,0.00041918,120]
[337407721,1725648406602,-321.0,0.00041918,120]
[337407722,1725648406649,-321.0,0.00041918,120]
[337407723,1725648406697,-321.0,0.00041918,120]
[337407725,1725648406749,-321.0,0.00041918,120]
[337407726,1725648406800,-321.0,0.00041918,120]
[337407727,1725648406844,-153.0,0.00041918,120]
[337407728,1725648406890,-1000.0,0.00042,30]
[337407729,1725648406933,-1108.0824842,0.00042,5]
[337407730,1725648406978,-500.0,0.00042869,30]
[337407731,1725648407022,-648.594375,0.00042952,30]
[337407732,1725648407066,-599.202867,0.00042952,30]
[337407733,1725648407111,-203.545633,0.00042952,30]
[337407734,1725648407153,-972.891562,0.00042952,30]
[337407735,1725648407197,-362.905688,0.00042952,30]
[337407736,1725648407240,-234.9,0.00043,24]
[337407737,1725648407284,-234.899999,0.00043,24]
[337407738,1725648407331,-151.0,0.00043014,120]
[337407739,1725648407375,-151.0,0.0004337,120]
[337407740,1725648407421,-648.594375,0.00043489,30]
[337407741,1725648407467,-599.202867,0.00043489,30]
[337407742,1725648407517,-203.545633,0.00043489,30]
[337407743,1725648407564,-972.891562,0.00043489,30]
[337407744,1725648407610,-362.905688,0.00043489,30]
[337407745,1725648407663,-569.03,0.000435,33]
[337407746,1725648407715,-569.03,0.000435,33]
[337407747,1725648407768,-569.03,0.000435,33]
[337407748,1725648407818,-569.03,0.000435,33]
[337407749,1725648407867,-569.03,0.000435,33]
[337407750,1725648407916,-569.03,0.000435,33]
[337407751,1725648407964,-569.03,0.000435,33]
[337407752,1725648408012,-569.03,0.000435,33]
[337407753,1725648408061,-569.03,0.000435,33]
[337407754,1725648408110,-569.03,0.000435,33]
[337407755,1725648408159,-569.03,0.000435,33]
[337407756,1725648408209,-569.03,0.000435,33]
[337407757,1725648408259,-569.03,0.000435,33]
[337407758,1725648408309,-569.03,0.000435,33]
[337407759,1725648408401,-569.03,0.000435,33]
[337407760,1725648408456,-569.03,0.000435,33]
[337407761,1725648408507,-569.03,0.000435,33]
[337407762,1725648408560,-569.03,0.000435,33]
[337407763,1725648408611,-569.03,0.000435,33]
[337407764,1725648408666,-569.03,0.000435,33]
[337407765,1725648408717,-569.03,0.000435,33]
[337407766,1725648408772,-569.03,0.000435,33]
[337407767,1725648408825,-569.03,0.000435,33]
[337407768,1725648408877,-569.03,0.000435,33]
[337407769,1725648408927,-1062.7,0.00043835,120]
[337407770,1725648408975,-600.0,0.00043835,120]
[337407771,1725648409023,-600.0,0.00043835,120]
[337407772,1725648409070,-600.0,0.00043835,120]
[337407773,1725648409116,-600.63513648,0.00043835,120]
[337407774,1725648409163,-2024.43305255,0.00043835,30]
[337407775,1725648409208,-2000.0,0.00043835,30]
[337407776,1725648409257,-2000.0,0.00043835,30]
[337407777,1725648409305,-2000.0,0.00043835,30]
[337407778,1725648409352,-2000.0,0.00043835,30]
[337407779,1725648409399,-2000.0,0.00043835,30]
[337407780,1725648409448,-925.48878621,0.00043835,30]
[337407781,1725648409502,-2000.95179413,0.00043835,120]
[337407782,1725648409551,-1587.0025383,0.00043835,120]
[337407783,1725648409601,-300.0,0.00044,26]
[337407784,1725648409649,-300.0,0.00044,26]
[337407785,1725648409704,-648.594375,0.00044025,30]
[337407786,1725648409759,-599.202867,0.00044025,30]
[337407787,1725648409813,-203.545633,0.00044025,30]
[337407788,1725648409862,-972.891562,0.00044025,30]
[337407789,1725648409911,-362.905688,0.00044025,30]
[337407790,1725648409956,-1167.37,0.000441,30]
[337407791,1725648410216,-1062.7,0.00044109,120]
[337407792,1725648410268,-1062.7,0.00044383,120]
[337407793,1725648410315,-413.0,0.00044503,90]
[337407794,1725648410363,-648.594375,0.00044562,30]
[337407795,1725648410412,-599.202867,0.00044562,30]
[337407796,1725648410464,-203.545633,0.00044562,30]
[337407797,1725648410520,-972.891562,0.00044562,30]
[337407798,1725648410571,-362.905688,0.00044562,30]
[337407799,1725648410621,-1062.7,0.00044657,120]
[337407800,1725648410672,-172.63034279,0.000447,120]
[337407801,1725648410720,-413.0,0.00044877,90]
[337407802,1725648410780,-241.68,0.00044928,7]
[337407804,1725648410843,-241.68,0.00044928,7]
[337407806,1725648410899,-241.68,0.00044928,7]
[337407808,1725648410961,-1062.7,0.00044931,120]
[337407810,1725648411023,-300.0,0.00045,27]
[337407812,1725648411083,-300.0,0.00045,27]
[337407814,1725648411140,-15010.24261847,0.00045,120]
[337407816,1725648411197,-1000.0,0.00045,120]
[337407819,1725648411258,-285.0225991,0.00045,30]
[337407821,1725648411315,-835.02903601,0.00045,20]
[337407823,1725648411371,-151.0,0.00045041,120]
[337407825,1725648411432,-648.594375,0.00045099,30]
[337407827,1725648411491,-599.202867,0.00045099,30]
[337407828,1725648411540,-203.545633,0.00045099,30]
[337407829,1725648411590,-972.891562,0.00045099,30]
[337407830,1725648411637,-362.905688,0.00045099,30]
[337407831,1725648411685,-500.0,0.00045125,30]
[337407833,1725648411735,-1062.7,0.00045205,120]
[337407835,1725648411787,-679.939912,0.00045407,120]
[337407837,1725648411842,-1062.7,0.00045479,120]
[337407839,1725648411894,-151.0,0.00045616,120]
[337407841,1725648411946,-152.0,0.00045674,31]
[337407843,1725648412000,-195.27,0.0004575,120]
[337407845,1725648412058,-1062.7,0.00045753,120]
[337407847,1725648412118,-300.0,0.00046,29]
[337407849,1725648412175,-300.0,0.00046,29]
[337407851,1725648412231,-163.32103747,0.00046,120]
[337407853,1725648412292,-1347.0,0.00046,120]
[337407855,1725648412348,-1336.20854551,0.00046,120]
[337407858,1725648412406,-1062.7,0.00046027,120]
[337407859,1725648412463,-1062.7,0.00046301,120]
[337407861,1725648412523,-1062.7,0.00046575,120]
[337407863,1725648412586,-151.0,0.00046712,120]
[337407865,1725648412651,-895.54316076,0.000468,60]
[337407868,1725648412720,-2000.95179413,0.00046835,120]
[337407870,1725648412783,-1062.7,0.00046849,120]
[337407872,1725648412840,-1000.0,0.00046917,7]
[337407874,1725648412894,-1000.0,0.0004692,7]
[337407876,1725648412947,-300.0,0.00047,31]
[337407878,1725648413001,-300.0,0.00047,31]
[337407880,1725648413053,-215.54,0.00047,120]
[337407882,1725648413106,-413.0,0.00047121,90]
[337407884,1725648413158,-1062.7,0.00047123,120]
[337407886,1725648413209,-152.76035624,0.00047169,64]
[337407888,1725648413261,-1000.0,0.00047386,7]
[337407890,1725648413314,-1062.7,0.00047397,120]
[337407892,1725648413366,-1000.0,0.00047415,7]
[337407894,1725648413416,-471.152338,0.00047489,120]
[337407896,1725648413474,-500.0,0.000475,30]
[337407898,1725648413537,-1387.64122946,0.000475,120]
[337407900,1725648413599,-1062.7,0.00047671,120]
[337407902,1725648413661,-1000.0,0.00047761,7]
[337407904,1725648413725,-1062.7,0.00047945,120]
[337407906,1725648413784,-9081.02,0.00048,30]
[337407908,1725648413840,-300.0,0.00048,32]
[337407910,1725648413896,-300.0,0.00048,32]
[337407912,1725648413950,-1000.0,0.00048,120]
[337407914,1725648414009,-2029.2101678,0.00048,120]
[337407916,1725648414059,-1000.0,0.00048001,7]
[337407918,1725648414109,-1000.0,0.00048026,7]
[337407920,1725648414160,-1000.0,0.00048044,7]
[337407922,1725648414211,-1000.0,0.00048194,7]
[337407924,1725648414267,-1062.7,0.00048219,120]
[337407929,1725648414449,-151.0,0.00048219,120]
[337407931,1725648414514,-1000.0,0.00048223,7]
[337407933,1725648414573,-362.81746616,0.00048229,7]
[337407935,1725648414626,-151.0,0.00048384,120]
[337407937,1725648414680,-239791.94962766,0.000484,30]
[337407989,1725648428530,-821.877295,0.00024658,7]
[337407990,1725648428588,-821.877295,0.00024658,7]
[337407991,1725648428650,-821.877295,0.00024658,7]
[337407992,1725648428711,-821.877295,0.00024658,7]
[337407993,1725648428771,-821.877295,0.00024658,7]
[337407994,1725648428824,-821.877295,0.00024658,7]
[337407995,1725648428878,-821.877295,0.00024658,7]
[337407996,1725648428925,-821.877295,0.00024658,7]
[337407997,1725648428972,-821.877295,0.00024658,7]
[337407998,1725648429017,-821.877295,0.00024658,7]
[337407999,1725648429061,-821.877295,0.00024658,7]
[337408000,1725648429105,-821.877295,0.00024658,7]
[337408001,1725648429157,-821.877295,0.00024658,7]
[337408002,1725648429201,-821.877295,0.00024658,7]
[337408003,1725648429245,-821.877295,0.00024658,7]
[337408004,1725648429290,-821.877295,0.00024658,7]
[337408005,1725648429333,-821.877295,0.00024658,7]
[337408006,1725648429380,-821.877295,0.00024658,7]
[337408007,1725648429422,-821.877295,0.00024658,7]
[337408008,1725648429466,-821.877286,0.00024658,7]
[337408009,1725648429543,-176.21034156,0.00039999,31]
[337408010,1725648429595,-393.69385462,0.00039999,31]
[337408011,1725648429644,-609.06066745,0.00039999,31]
[337408012,1725648429694,-274.05767026,0.00039999,31]
[337408013,1725648429744,-500.0,0.00039999,31]
[337408014,1725648429795,-500.0,0.00039999,31]
[337408015,1725648429844,-500.0,0.00039999,31]
[337408016,1725648429890,-500.0,0.00039999,31]
[337408017,1725648429936,-500.0,0.00039999,31]
[337408018,1725648429980,-500.0,0.00039999,31]
[337408019,1725648430024,-500.0,0.00039999,31]
[337408020,1725648430066,-260.837414,0.0004,30]
[337408021,1725648430111,-250.0,0.00042,30]
[337408022,1725648430153,-250.0,0.00044,30]
[337408023,1725648430196,-250.0,0.00046,30]
[337408024,1725648430239,-250.0,0.00048,30]
[337408025,1725648430281,-260208.05037234,0.000484,30]
[337408026,1725648430324,-300.0,0.000484,30]
[337408027,1725648430367,-150.0,0.000484,30]
[337408028,1725648430409,-1000.0,0.00048402,7]
[337408029,1725648430455,-1000.0,0.00048411,7]
[337408030,1725648430522,-1000.0,0.00048412,7]
[337408031,1725648430573,-491.55818351,0.0004846,90]
[337408032,1725648430624,-1000.0,0.00048472,7]
[337408033,1725648430674,-1062.7,0.00048493,120]
[337408034,1725648430724,-1000.0,0.00048516,7]
[337408035,1725648430773,-1000.0,0.00048566,7]
[337408036,1725648430821,-1000.0,0.00048599,7]
[337408037,1725648430868,-1000.0,0.00048606,7]
[337408038,1725648430915,-1000.0,0.00048613,7]
[337408039,1725648430961,-1000.0,0.00048633,7]
[337408040,1725648431005,-1000.0,0.00048651,7]
[337408041,1725648431050,-1000.0,0.00048677,7]
[337408042,1725648431100,-1062.7,0.00048767,120]
[337408043,1725648431149,-1000.0,0.00048773,7]
[337408044,1725648431197,-1000.0,0.00048784,7]
[337408045,1725648431242,-1000.0,0.00048791,7]
[337408046,1725648431288,-2016.63819794,0.000488,120]
[337408047,1725648431332,-10000.0,0.00048888,120]
[337408048,1725648431377,-1000.0,0.00048896,7]
[337408049,1725648431421,-1000.0,0.0004891,7]
[337408050,1725648431465,-300.0,0.00048918,7]
[337408051,1725648431513,-1000.0,0.00048937,7]
[337408052,1725648431572,-1000.0,0.00048996,7]
[337408053,1725648431627,-500.0,0.00049,120]
[337408054,1725648431680,-500.0,0.00049,120]
[337408055,1725648431734,-500.0,0.00049,120]
[337408056,1725648431787,-500.0,0.00049,120]
[337408057,1725648431840,-500.0,0.00049,120]
[337408058,1725648431889,-500.0,0.00049,120]
[337408059,1725648431934,-500.0,0.00049,120]
[337408060,1725648432328,-500.0,0.00049,120]
[337408061,1725648432393,-500.0,0.00049,120]
[337408062,1725648432438,-500.0,0.00049,120]
[337408063,1725648432484,-500.0,0.00049,120]
[337408064,1725648432531,-500.0,0.00049,120]
[337408065,1725648432579,-500.0,0.00049,120]
[337408066,1725648432634,-500.0,0.00049,120]
[337408067,1725648432683,-300.0,0.00049,34]
[337408068,1725648432728,-300.0,0.00049,34]
[337408069,1725648432775,-206.13490608,0.00049,10]
[337408070,1725648432822,-1113.1153778,0.00049,120]
[337408071,1725648432869,-1022.2453804,0.00049,49]
[337408072,1725648432914,-1062.7,0.00049041,120]
[337408073,1725648432961,-1000.0,0.00049079,7]
[337408074,1725648433009,-569.03,0.000491,45]
[337408075,1725648433058,-569.03,0.000491,45]
[337408076,1725648433121,-569.03,0.000491,45]
[337408077,1725648433176,-569.03,0.000491,45]
[337408078,1725648433230,-569.03,0.000491,45]
[337408079,1725648433284,-569.03,0.000491,45]
[337408080,1725648433337,-569.03,0.000491,45]
[337408081,1725648433391,-569.03,0.000491,45]
[337408082,1725648433443,-569.03,0.000491,45]
[337408083,1725648433495,-569.03,0.000491,45]
[337408084,1725648433547,-569.03,0.000491,45]
[337408085,1725648433601,-569.03,0.000491,45]
[337408086,1725648433653,-569.03,0.000491,45]
[337408087,1725648433705,-569.03,0.000491,45]
[337408088,1725648433758,-569.03,0.000491,45]
[337408089,1725648433816,-569.03,0.000491,45]
[337408090,1725648433868,-1062.7,0.00049315,120]
[337408091,1725648433916,-1188.43,0.00049315,120]
[337408092,1725648433965,-1188.43,0.00049315,120]
[337408093,1725648434011,-1188.43,0.00049315,120]
[337408094,1725648434059,-1188.43,0.00049315,120]
[337408095,1725648434105,-1188.43,0.00049315,120]
[337408096,1725648434152,-1188.43,0.00049315,120]
[337408097,1725648434200,-1188.43,0.00049315,120]
[337408098,1725648434251,-1188.43,0.00049315,120]
[337408099,1725648434298,-1188.43,0.00049315,120]
[337408100,1725648434352,-1188.43,0.00049315,120]
[337408101,1725648434401,-1188.43,0.00049315,120]
[337408102,1725648434453,-1188.43,0.00049315,120]
[337408103,1725648434504,-1188.43,0.00049315,120]
[337408104,1725648434554,-1188.43,0.00049315,120]
[337408105,1725648434601,-1188.43,0.00049315,120]
[337408106,1725648434649,-1188.43,0.00049315,120]
[337408107,1725648434694,-1188.43,0.00049315,120]
[337408108,1725648434740,-1188.43,0.00049315,120]
[337408109,1725648434794,-1188.43,0.00049315,120]
[337408110,1725648434841,-1188.43,0.00049315,120]
[337408111,1725648434893,-1188.43,0.00049315,120]
[337408112,1725648434939,-1188.43,0.00049315,120]
[337408113,1725648434987,-1188.43,0.00049315,120]
[337408114,1725648435037,-1188.4478278,0.00049315,120]
[337408115,1725648435086,-692.53485661,0.00049315,120]
[337408116,1725648435142,-500.0,0.00049315,31]
[337408117,1725648435188,-500.0,0.00049315,31]
[337408118,1725648435235,-500.0,0.00049315,31]
[337408119,1725648435281,-500.0,0.00049315,31]
[337408120,1725648435327,-500.0,0.00049315,31]
[337408121,1725648435374,-261.37785757,0.00049315,31]
[337408122,1725648435422,-306.81976195,0.00049315,31]
[337408123,1725648435475,-1062.7,0.00049589,120]
[337408124,1725648435526,-2000.95179413,0.00049835,120]
[337408125,1725648435579,-1062.7,0.00049863,120]
[337408126,1725648435627,-5000.0,0.0004988,5]
[337408127,1725648435674,-50000.0,0.000499,30]
[337408128,1725648435720,-1000.0,0.00049999,120]
[337408129,1725648435773,-10000.0,0.0005,61]
[337408130,1725648435823,-300.0,0.0005,36]
[337408131,1725648435869,-193.95937055,0.0005,30]
[337408132,1725648435914,-212.98169491,0.0005,20]
[337408133,1725648435959,-244.51367201,0.0005,120]
[337408134,1725648436008,-1054.56880369,0.0005,120]
[337408135,1725648436056,-521.58319482,0.0005,10]
[337408136,1725648436105,-518.4289001,0.0005,120]
[337408137,1725648436150,-4660.0,0.0005,120]
[337408138,1725648436196,-2500.0,0.0005,120]
[337408139,1725648436242,-500.0,0.0005,120]
[337408140,1725648436289,-500.0,0.0005,120]
[337408141,1725648436337,-300.0,0.0005,36]
[337408142,1725648436382,-500.0,0.0005,30]
[337408143,1725648436427,-250.0,0.0005,30]
[337408144,1725648436472,-151.0,0.00050055,120]
[337408145,1725648436517,-1062.89746032,0.00050136,120]
[337408146,1725648436565,-500.0,0.000503,60]
[337408147,1725648436608,-444206.21654858,0.0005044,30]
[337408148,1725648446374,-500.0,0.00030209,7]
[337408149,1725648446422,-500.0,0.00030274,7]
[337408150,1725648446496,-500.0,0.00031655,7]
[337408151,1725648446540,-500.0,0.00032429,7]
[337408152,1725648446587,-500.0,0.00033258,7]
[337408153,1725648446641,-500.0,0.00033817,7]
[337408154,1725648446687,-160.0,0.00040678,5]
[337408155,1725648446735,-55793.78345142,0.0005044,30]
[337408156,1725648446782,-151.0,0.00050822,120]
[337408157,1725648446826,-150.0,0.00051,90]
[337408158,1725648446868,-1167.37,0.00051,30]
[337408159,1725648446917,-3000.0,0.00051,85]
[337408160,1725648446958,-150.0,0.00051,10]
[337408161,1725648447000,-3000.0,0.0005101,85]
[337408162,1725648447043,-3000.0,0.0005102,85]
[337408163,1725648447087,-3000.0,0.0005103,85]
[337408164,1725648447132,-3000.0,0.0005104,85]
[337408165,1725648447175,-3000.0,0.0005105,85]
[337408166,1725648447219,-3000.0,0.0005106,85]
[337408167,1725648447264,-3000.0,0.0005107,85]
[337408168,1725648447306,-5181.583796,0.0005108,85]
[337408169,1725648447355,-1440.66667631,0.00051234,28]
[337408170,1725648447397,-679.939912,0.00051513,120]
[337408171,1725648447440,-151.0,0.00051726,120]
[337408172,1725648447488,-1000.0,0.0005178,120]
[337408173,1725648447533,-1000.0,0.0005178,120]
[337408174,1725648447577,-1000.0,0.0005178,120]
[337408175,1725648447623,-1000.0,0.0005178,120]
[337408176,1725648447667,-1000.0,0.0005178,120]
[337408177,1725648447714,-1113.53667804,0.0005178,120]
[337408178,1725648447761,-1000.0,0.00051999,120]
[337408179,1725648447811,-1000.0,0.00052,120]
[337408180,1725648447859,-150.0,0.00052,90]
[337408181,1725648447901,-160.0,0.00052055,60]
[337408182,1725648447943,-160.0,0.00052055,60]
[337408183,1725648447985,-160.0,0.00052055,60]
[337408184,1725648448028,-160.36419156,0.00052055,60]
[337408185,1725648448074,-162.04007465,0.00052055,60]
[337408186,1725648448116,-1404.59,0.00052356,120]
[337408187,1725648448158,-1404.59,0.00052356,120]
[337408188,1725648448200,-1404.59,0.00052356,120]
[337408189,1725648448244,-1404.59,0.00052356,120]
[337408190,1725648448287,-1404.59,0.00052356,120]
[337408191,1725648448330,-1404.59,0.00052356,120]
[337408192,1725648448372,-1404.59,0.00052356,120]
[337408193,1725648448418,-1404.59,0.00052356,120]
[337408194,1725648448464,-1404.59,0.00052356,120]
[337408195,1725648448508,-1404.59,0.00052356,120]
[337408196,1725648448557,-1404.59,0.00052356,120]
[337408197,1725648448604,-1404.59,0.00052356,120]
[337408198,1725648448659,-1404.59,0.00052356,120]
[337408199,1725648448705,-1404.59,0.00052356,120]
[337408200,1725648448752,-1404.59,0.00052356,120]
[337408201,1725648448804,-1404.59,0.00052356,120]
[337408202,1725648448854,-1404.59,0.00052356,120]
[337408203,1725648448898,-1404.59,0.00052356,120]
[337408204,1725648448943,-1404.59,0.00052356,120]
[337408205,1725648448986,-1404.59,0.00052356,120]
[337408206,1725648449029,-1404.59,0.00052356,120]
[337408207,1725648449071,-1404.59,0.00052356,120]
[337408208,1725648449116,-1404.59,0.00052356,120]
[337408209,1725648449163,-1404.82427529,0.00052356,120]
[337408210,1725648449206,-500.0,0.000525,30]
[337408211,1725648449248,-2000.95179413,0.00052835,120]
[337408212,1725648449291,-1441.55264654,0.00052948,70]
[337408213,1725648449334,-1000.0,0.00052999,120]
[337408214,1725648449378,-200.0,0.00053,90]
[337408215,1725648449421,-20145.03707338,0.00053,120]
[337408216,1725648449465,-185.44302344,0.000533,120]
[337408217,1725648449511,-151.0,0.00053397,120]
[337408218,1725648449558,-9081.02,0.000534,30]
[337408219,1725648449607,-151.0,0.00053425,120]
[337408220,1725648449653,-471.152338,0.00053425,120]
[337408221,1725648449700,-616.40558975,0.000538,120]
[337408222,1725648449748,-1442.40774405,0.000538,90]
[337408223,1725648449795,-1000.0,0.00053999,120]
[337408224,1725648449842,-1000.0,0.00054,120]
[337408225,1725648449892,-198.21255022,0.00054,120]
[337408226,1725648449938,-611.299,0.00054,30]
[337408227,1725648449985,-264.0,0.00054,120]
[337408228,1725648450031,-1024.77680163,0.00054,120]
[337408229,1725648450073,-480.21,0.00054,120]
[337408230,1725648450116,-710.56,0.00054246,120]
[337408231,1725648450159,-710.56,0.00054246,120]
[337408232,1725648450202,-710.56,0.00054246,120]
[337408233,1725648450245,-710.56,0.00054246,120]
[337408234,1725648450289,-710.56,0.00054246,120]
[337408235,1725648450334,-710.56,0.00054246,120]
[337408236,1725648450376,-710.56,0.00054246,120]
[337408237,1725648450421,-710.56,0.00054246,120]
[337408238,1725648450464,-710.56,0.00054246,120]
[337408239,1725648450508,-710.56,0.00054246,120]
[337408240,1725648450556,-710.56,0.00054246,120]
[337408241,1725648450601,-710.56,0.00054246,120]
[337408242,1725648450644,-710.56,0.00054246,120]
[337408243,1725648450686,-710.56,0.00054246,120]
[337408244,1725648450730,-710.56,0.00054246,120]
[337408245,1725648450776,-710.56,0.00054246,120]
[337408246,1725648450821,-710.56,0.00054246,120]
[337408247,1725648450865,-710.56,0.00054246,120]
[337408248,1725648450908,-710.56,0.00054246,120]
[337408249,1725648450952,-710.56,0.00054246,120]
[337408250,1725648450996,-710.56,0.00054246,120]
[337408251,1725648451040,-710.56,0.00054246,120]
[337408252,1725648451083,-710.56,0.00054246,120]
[337408253,1725648451127,-710.58770853,0.00054246,120]
[337408254,1725648451172,-500.0,0.00054791,120]
[337408255,1725648451344,-500.0,0.00054791,120]
[337408256,1725648451390,-500.0,0.00054791,120]
[337408257,1725648451434,-500.0,0.00054791,120]
[337408258,1725648451478,-500.0,0.00054791,120]
[337408259,1725648451523,-500.0,0.00054791,120]
[337408260,1725648451566,-500.0,0.00054791,120]
[337408261,1725648451611,-500.0,0.00054791,120]
[337408262,1725648451654,-500.0,0.00054791,120]
[337408263,1725648451698,-500.0,0.00054791,120]
[337408264,1725648451740,-500.0,0.00054791,120]
[337408265,1725648451783,-500.0,0.00054791,120]
[337408266,1725648451826,-500.0,0.00054791,120]
[337408267,1725648451870,-500.0,0.00054791,120]
[337408268,1725648451912,-500.0,0.00054791,120]
[337408269,1725648451953,-500.0,0.00054791,120]
[337408270,1725648451995,-500.0,0.00054791,120]
[337408271,1725648452038,-500.0,0.00054791,120]
[337408272,1725648452085,-500.0,0.00054791,120]
[337408273,1725648452136,-341.15147109,0.00054791,120]
[337408274,1725648452179,-3500.0,0.00054794,120]
[337408275,1725648452221,-3500.0,0.00054794,120]
[337408276,1725648452262,-3500.0,0.00054794,120]
[337408277,1725648452304,-3500.0,0.00054794,120]
[337408278,1725648452347,-1449.86267296,0.00054794,120]
[337408279,1725648452390,-500.0,0.00054794,120]
[337408280,1725648452433,-500.0,0.00054794,120]
[337408281,1725648452476,-500.0,0.00054794,120]
[337408282,1725648452521,-500.0,0.00054794,120]
[337408283,1725648452570,-500.0,0.00054794,120]
[337408284,1725648452614,-500.0,0.00054794,120]
[337408285,1725648452657,-500.0,0.00054794,120]
[337408286,1725648452702,-500.0,0.00054794,120]
[337408287,1725648452746,-500.0,0.00054794,120]
[337408288,1725648452789,-500.0,0.00054794,120]
[337408289,1725648452830,-500.0,0.00054794,120]
[337408290,1725648452871,-500.0,0.00054794,120]
[337408291,1725648452912,-500.0,0.00054794,120]